Workbook

Sheet Notes
B2: Post-COVID clinic Friends and Family Test (FFT) data - October 2022 | H2: Show data for:

Sheet Summary
B3: FFT | C3: Number of organisations submitting | D3: Total responses to date | E3: Responses | G3: Percentage Positive | I3: Percentage Negative
C4: 2022-10-01 | D4: 2022-10-01 | E4: 2022-10-01 | F4: 2022-09-26 | G4: 2022-10-01 | H4: 2022-09-26 | I4: 2022-10-01 | J4: 2022-09-26
B5: Post Covid Q1 | C5: 65 | D5: 7925 | E5: 807 | F5: 835 | G5: 0.9293680297 | H5: 0.9473053892 | I5: 0.02230483271 | J5: 0.02155688623
B6: Post Covid Q2 | C6: 65 | D6: 6238 | E6: 485 | F6: 522 | G6: 0.9608247423 | H6: 0.9636015326 | I6: 0.03917525773 | J6: 0.03639846743
B7: Post Covid Q3 | C7: 65 | D7: 6140 | E7: 478 | F7: 522 | G7: 0.9958158996 | H7: 0.9846743295 | I7: 0.004184100418 | J7: 0.0153256705

Sheet ICB
A3: ICB Code | B3: ICB Name | C3: Question 1 | F3: Question 1 | L3: Question 2 | P3: Question 2 | S3: Question 3 | V3: Question 3
C4: Total Responses | D4: Percentage Positive | E4: Percentage Negative | F4: Breakdown of Responses | L4: Total Responses | M4: Total Eligible | N4: Percentage Positive | O4: Percentage Negative | P4: Breakdown of Responses | S4: Total Responses | T4: Percentage Positive | U4: Percentage Negative | V4: Breakdown of Responses
F5: Very Good | G5: Good | H5: Neither Good nor Poor | I5: Poor | J5: Very Poor | K5: Don't Know | P5: Yes definitely | Q5: Yes to some extent | R5: No | V5: Yes definitely | W5: Yes to some extent | X5: No
B6: England | C6: 807 | D6: 0.9293680297 | E6: 0.02230483271 | F6: 616 | G6: 134 | H6: 36 | I6: 11 | J6: 7 | K6: 3 | L6: 485 | M6: 1877 | N6: 0.9608247423 | O6: 0.03917525773 | P6: 410 | Q6: 56 | R6: 19 | S6: 478 | T6: 0.9958158996 | U6: 0.004184100418 | V6: 454 | W6: 22 | X6: 2
B7: Selection (excluding suppressed data) | C7: =SUBTOTAL(9,C8:C61) -> 807 | D7: =IFERROR((F7+G7)/C7, "-") -> 0.9144981413 | E7: =IFERROR((I7+J7)/C7, "-") -> 0.02106567534 | F7: =SUBTOTAL(9,F8:F61) -> 606 | G7: 132 | H7: 36 | I7: 10 | J7: 7 | K7: 3 | L7: 485 | M7: 1877 | N7: =IFERROR((P7+Q7)/L7, "-") -> 0.9360824742 | O7: =IFERROR(R7/M7, "-") -> 0.009589770911 | P7: 399 | Q7: 55 | R7: 18 | S7: =SUBTOTAL(9,S8:S61) -> 478 | T7: =IFERROR((V7+W7)/S7, "-") -> 0.9686192469 | U7: =IFERROR(X7/S7, "-") -> 0.004184100418 | V7: =SUBTOTAL(9,V8:V61) -> 441 | W7: 22 | X7: 2
A8: QE1 | B8: LANCASHIRE AND SOUTH CUMBRIA ICB | C8: 5 | D8: 0.8 | E8: 0.2 | F8: * | G8: * | H8: * | I8: * | J8: * | K8: * | L8: 5 | M8: 0 | N8: 0.8 | O8: 0.2 | P8: * | Q8: * | R8: * | S8: 5 | T8: 1 | U8: 0 | V8: * | W8: * | X8: *
A9: QF7 | B9: SOUTH YORKSHIRE ICB | C9: 152 | D9: 0.9802631579 | E9: 0.01315789474 | F9: 123 | G9: 26 | H9: 1 | I9: 2 | J9: 0 | K9: 0 | L9: 1 | M9: 0 | N9: * | O9: * | P9: 1 | Q9: 0 | R9: 0 | S9: 1 | T9: * | U9: * | V9: 1 | W9: 0 | X9: 0
A10: QGH | B10: HEREFORDSHIRE AND WORCESTERSHIRE ICB | C10: 0 | D10: NA | E10: NA | F10: 0 | G10: 0 | H10: 0 | I10: 0 | J10: 0 | K10: 0 | L10: 0 | M10: 0 | N10: NA | O10: NA | P10: 0 | Q10: 0 | R10: 0 | S10: 0 | T10: NA | U10: NA | V10: 0 | W10: 0 | X10: 0
A11: QH8 | B11: MID AND SOUTH ESSEX ICB | C11: 0 | D11: NA | E11: NA | F11: 0 | G11: 0 | H11: 0 | I11: 0 | J11: 0 | K11: 0 | L11: 0 | M11: 0 | N11: NA | O11: NA | P11: 0 | Q11: 0 | R11: 0 | S11: 0 | T11: NA | U11: NA | V11: 0 | W11: 0 | X11: 0
A12: QHG | B12: BEDFORDSHIRE, LUTON AND MILTON KEYNES ICB | C12: 43 | D12: 0.9069767442 | E12: 0 | F12: 33 | G12: 6 | H12: 4 | I12: 0 | J12: 0 | K12: 0 | L12: 43 | M12: 43 | N12: 0.976744186 | O12: 0.02325581395 | P12: 37 | Q12: 5 | R12: 1 | S12: 43 | T12: 1 | U12: 0 | V12: 40 | W12: 3 | X12: 0
A13: QHL | B13: BIRMINGHAM AND SOLIHULL ICB | C13: 25 | D13: 0.92 | E13: 0 | F13: 18 | G13: 5 | H13: 2 | I13: 0 | J13: 0 | K13: 0 | L13: 25 | M13: 0 | N13: 1 | O13: 0 | P13: 22 | Q13: 3 | R13: 0 | S13: 25 | T13: 1 | U13: 0 | V13: 23 | W13: 2 | X13: 0
A14: QHM | B14: NORTH EAST AND NORTH CUMBRIA ICB | C14: 80 | D14: 1 | E14: 0 | F14: 67 | G14: 13 | H14: 0 | I14: 0 | J14: 0 | K14: 0 | L14: 74 | M14: 447 | N14: 1 | O14: 0 | P14: 69 | Q14: 5 | R14: 0 | S14: 74 | T14: 1 | U14: 0 | V14: 71 | W14: 3 | X14: 0
A15: QJ2 | B15: DERBY AND DERBYSHIRE ICB | C15: 0 | D15: NA | E15: NA | F15: 0 | G15: 0 | H15: 0 | I15: 0 | J15: 0 | K15: 0 | L15: 0 | M15: 0 | N15: NA | O15: NA | P15: 0 | Q15: 0 | R15: 0 | S15: 0 | T15: NA | U15: NA | V15: 0 | W15: 0 | X15: 0
A16: QJG | B16: SUFFOLK AND NORTH EAST ESSEX ICB | C16: 29 | D16: 0.6206896552 | E16: 0.1034482759 | F16: 7 | G16: 11 | H16: 8 | I16: 1 | J16: 2 | K16: 0 | L16: 39 | M16: 1 | N16: 0.8461538462 | O16: 0.1538461538 | P16: 25 | Q16: 8 | R16: 6 | S16: 39 | T16: 1 | U16: 0 | V16: 34 | W16: 5 | X16: 0
A17: QJK | B17: DEVON ICB | C17: 0 | D17: NA | E17: NA | F17: 0 | G17: 0 | H17: 0 | I17: 0 | J17: 0 | K17: 0 | L17: 0 | M17: 0 | N17: NA | O17: NA | P17: 0 | Q17: 0 | R17: 0 | S17: 0 | T17: NA | U17: NA | V17: 0 | W17: 0 | X17: 0
A18: QJM | B18: LINCOLNSHIRE ICB | C18: 18 | D18: 0.9444444444 | E18: 0.05555555556 | F18: 14 | G18: 3 | H18: 0 | I18: 1 | J18: 0 | K18: 0 | L18: 18 | M18: 215 | N18: 0.9444444444 | O18: 0.05555555556 | P18: 15 | Q18: 2 | R18: 1 | S18: 18 | T18: 1 | U18: 0 | V18: 18 | W18: 0 | X18: 0
A19: QK1 | B19: LEICESTER, LEICESTERSHIRE AND RUTLAND ICB | C19: 15 | D19: 1 | E19: 0 | F19: 15 | G19: 0 | H19: 0 | I19: 0 | J19: 0 | K19: 0 | L19: 14 | M19: 108 | N19: 1 | O19: 0 | P19: 13 | Q19: 1 | R19: 0 | S19: 15 | T19: 1 | U19: 0 | V19: 15 | W19: 0 | X19: 0
A20: QKK | B20: SOUTH EAST LONDON ICB | C20: 7 | D20: 1 | E20: 0 | F20: 5 | G20: 2 | H20: 0 | I20: 0 | J20: 0 | K20: 0 | L20: 7 | M20: 111 | N20: 0.8571428571 | O20: 0.1428571429 | P20: 5 | Q20: 1 | R20: 1 | S20: 7 | T20: 1 | U20: 0 | V20: 7 | W20: 0 | X20: 0
A21: QKS | B21: KENT AND MEDWAY ICB | C21: 0 | D21: NA | E21: NA | F21: 0 | G21: 0 | H21: 0 | I21: 0 | J21: 0 | K21: 0 | L21: 0 | M21: 0 | N21: NA | O21: NA | P21: 0 | Q21: 0 | R21: 0 | S21: 0 | T21: NA | U21: NA | V21: 0 | W21: 0 | X21: 0
A22: QM7 | B22: HERTFORDSHIRE AND WEST ESSEX ICB | C22: 10 | D22: 1 | E22: 0 | F22: 8 | G22: 2 | H22: 0 | I22: 0 | J22: 0 | K22: 0 | L22: 10 | M22: 0 | N22: 0.9 | O22: 0.1 | P22: 7 | Q22: 2 | R22: 1 | S22: 10 | T22: 1 | U22: 0 | V22: 10 | W22: 0 | X22: 0
A23: QMF | B23: NORTH EAST LONDON ICB | C23: 59 | D23: 0.8305084746 | E23: 0.03389830508 | F23: 35 | G23: 14 | H23: 6 | I23: 1 | J23: 1 | K23: 2 | L23: 2 | M23: 0 | N23: * | O23: * | P23: 0 | Q23: 2 | R23: 0 | S23: 2 | T23: * | U23: * | V23: 1 | W23: 1 | X23: 0
A24: QMJ | B24: NORTH CENTRAL LONDON ICB | C24: 0 | D24: NA | E24: NA | F24: 0 | G24: 0 | H24: 0 | I24: 0 | J24: 0 | K24: 0 | L24: 0 | M24: 0 | N24: NA | O24: NA | P24: 0 | Q24: 0 | R24: 0 | S24: 0 | T24: NA | U24: NA | V24: 0 | W24: 0 | X24: 0
A25: QMM | B25: NORFOLK AND WAVENEY ICB | C25: 51 | D25: 0.9411764706 | E25: 0.01960784314 | F25: 41 | G25: 7 | H25: 2 | I25: 1 | J25: 0 | K25: 0 | L25: 5 | M25: 0 | N25: 1 | O25: 0 | P25: 5 | Q25: 0 | R25: 0 | S25: 5 | T25: 1 | U25: 0 | V25: 5 | W25: 0 | X25: 0
A26: QNC | B26: STAFFORDSHIRE AND STOKE-ON-TRENT ICB | C26: 17 | D26: 0.8823529412 | E26: 0 | F26: 13 | G26: 2 | H26: 2 | I26: 0 | J26: 0 | K26: 0 | L26: 17 | M26: 17 | N26: 0.9411764706 | O26: 0.05882352941 | P26: 16 | Q26: 0 | R26: 1 | S26: 17 | T26: 1 | U26: 0 | V26: 17 | W26: 0 | X26: 0
A27: QNQ | B27: FRIMLEY ICB | C27: 0 | D27: NA | E27: NA | F27: 0 | G27: 0 | H27: 0 | I27: 0 | J27: 0 | K27: 0 | L27: 0 | M27: 0 | N27: NA | O27: NA | P27: 0 | Q27: 0 | R27: 0 | S27: 0 | T27: NA | U27: NA | V27: 0 | W27: 0 | X27: 0
A28: QNX | B28: SUSSEX ICB | C28: 10 | D28: 1 | E28: 0 | F28: 8 | G28: 2 | H28: 0 | I28: 0 | J28: 0 | K28: 0 | L28: 8 | M28: 0 | N28: 1 | O28: 0 | P28: 8 | Q28: 0 | R28: 0 | S28: 8 | T28: 1 | U28: 0 | V28: 8 | W28: 0 | X28: 0
A29: QOC | B29: SHROPSHIRE, TELFORD AND WREKIN ICB | C29: 0 | D29: NA | E29: NA | F29: 0 | G29: 0 | H29: 0 | I29: 0 | J29: 0 | K29: 0 | L29: 0 | M29: 0 | N29: NA | O29: NA | P29: 0 | Q29: 0 | R29: 0 | S29: 0 | T29: NA | U29: NA | V29: 0 | W29: 0 | X29: 0
A30: QOP | B30: GREATER MANCHESTER ICB | C30: 14 | D30: 1 | E30: 0 | F30: 13 | G30: 1 | H30: 0 | I30: 0 | J30: 0 | K30: 0 | L30: 11 | M30: 65 | N30: 1 | O30: 0 | P30: 10 | Q30: 1 | R30: 0 | S30: 11 | T30: 1 | U30: 0 | V30: 10 | W30: 1 | X30: 0
A31: QOQ | B31: HUMBER AND NORTH YORKSHIRE ICB | C31: 4 | D31: * | E31: * | F31: * | G31: * | H31: * | I31: * | J31: * | K31: * | L31: 4 | M31: 7 | N31: * | O31: * | P31: * | Q31: * | R31: * | S31: 4 | T31: * | U31: * | V31: * | W31: * | X31: *
A32: QOX | B32: BATH AND NORTH EAST SOMERSET, SWINDON AND WILTSHIRE ICB | C32: 2 | D32: * | E32: * | F32: * | G32: * | H32: * | I32: * | J32: * | K32: * | L32: 2 | M32: 0 | N32: * | O32: * | P32: * | Q32: * | R32: * | S32: 2 | T32: * | U32: * | V32: * | W32: * | X32: *
A33: QPM | B33: NORTHAMPTONSHIRE ICB | C33: 0 | D33: NA | E33: NA | F33: 0 | G33: 0 | H33: 0 | I33: 0 | J33: 0 | K33: 0 | L33: 0 | M33: 0 | N33: NA | O33: NA | P33: 0 | Q33: 0 | R33: 0 | S33: 0 | T33: NA | U33: NA | V33: 0 | W33: 0 | X33: 0
A34: QR1 | B34: GLOUCESTERSHIRE ICB | C34: 19 | D34: 0.9473684211 | E34: 0.05263157895 | F34: 13 | G34: 5 | H34: 0 | I34: 0 | J34: 1 | K34: 0 | L34: 19 | M34: 0 | N34: 1 | O34: 0 | P34: 15 | Q34: 4 | R34: 0 | S34: 19 | T34: 0.9473684211 | U34: 0.05263157895 | V34: 17 | W34: 1 | X34: 1
A35: QRL | B35: HAMPSHIRE AND ISLE OF WIGHT ICB | C35: 26 | D35: 0.9615384615 | E35: 0 | F35: 22 | G35: 3 | H35: 1 | I35: 0 | J35: 0 | K35: 0 | L35: 26 | M35: 662 | N35: 1 | O35: 0 | P35: 23 | Q35: 3 | R35: 0 | S35: 26 | T35: 1 | U35: 0 | V35: 26 | W35: 0 | X35: 0
A36: QRV | B36: NORTH WEST LONDON ICB | C36: 5 | D36: 0.8 | E36: 0.2 | F36: 3 | G36: 1 | H36: 0 | I36: 0 | J36: 1 | K36: 0 | L36: 5 | M36: 47 | N36: 0.8 | O36: 0.2 | P36: 3 | Q36: 1 | R36: 1 | S36: 5 | T36: 1 | U36: 0 | V36: 3 | W36: 2 | X36: 0
A37: QSL | B37: SOMERSET ICB | C37: 0 | D37: NA | E37: NA | F37: 0 | G37: 0 | H37: 0 | I37: 0 | J37: 0 | K37: 0 | L37: 0 | M37: 0 | N37: NA | O37: NA | P37: 0 | Q37: 0 | R37: 0 | S37: 0 | T37: NA | U37: NA | V37: 0 | W37: 0 | X37: 0
A38: QT1 | B38: NOTTINGHAM AND NOTTINGHAMSHIRE ICB | C38: 0 | D38: NA | E38: NA | F38: 0 | G38: 0 | H38: 0 | I38: 0 | J38: 0 | K38: 0 | L38: 0 | M38: 11 | N38: NA | O38: NA | P38: 0 | Q38: 0 | R38: 0 | S38: 0 | T38: NA | U38: NA | V38: 0 | W38: 0 | X38: 0
A39: QT6 | B39: CORNWALL AND THE ISLES OF SCILLY ICB | C39: 38 | D39: 1 | E39: 0 | F39: 32 | G39: 6 | H39: 0 | I39: 0 | J39: 0 | K39: 0 | L39: 33 | M39: 0 | N39: 1 | O39: 0 | P39: 31 | Q39: 2 | R39: 0 | S39: 33 | T39: 1 | U39: 0 | V39: 33 | W39: 0 | X39: 0
A40: QU9 | B40: BUCKINGHAMSHIRE, OXFORDSHIRE AND BERKSHIRE WEST ICB | C40: 2 | D40: * | E40: * | F40: * | G40: * | H40: * | I40: * | J40: * | K40: * | L40: 2 | M40: 0 | N40: * | O40: * | P40: * | Q40: * | R40: * | S40: 2 | T40: * | U40: * | V40: * | W40: * | X40: *
A41: QUA | B41: BLACK COUNTRY ICB | C41: 39 | D41: 1 | E41: 0 | F41: 39 | G41: 0 | H41: 0 | I41: 0 | J41: 0 | K41: 0 | L41: 35 | M41: 1 | N41: 1 | O41: 0 | P41: 35 | Q41: 0 | R41: 0 | S41: 35 | T41: 1 | U41: 0 | V41: 35 | W41: 0 | X41: 0
A42: QUE | B42: CAMBRIDGESHIRE AND PETERBOROUGH ICB | C42: 13 | D42: 0.9230769231 | E42: 0.07692307692 | F42: 10 | G42: 2 | H42: 0 | I42: 1 | J42: 0 | K42: 0 | L42: 13 | M42: 26 | N42: 1 | O42: 0 | P42: 11 | Q42: 2 | R42: 0 | S42: 13 | T42: 1 | U42: 0 | V42: 13 | W42: 0 | X42: 0
A43: QUY | B43: BRISTOL, NORTH SOMERSET AND SOUTH GLOUCESTERSHIRE ICB | C43: 0 | D43: NA | E43: NA | F43: 0 | G43: 0 | H43: 0 | I43: 0 | J43: 0 | K43: 0 | L43: 0 | M43: 0 | N43: NA | O43: NA | P43: 0 | Q43: 0 | R43: 0 | S43: 0 | T43: NA | U43: NA | V43: 0 | W43: 0 | X43: 0
A44: QVV | B44: DORSET ICB | C44: 29 | D44: 0.5862068966 | E44: 0.1379310345 | F44: 10 | G44: 7 | H44: 7 | I44: 2 | J44: 2 | K44: 1 | L44: 29 | M44: 0 | N44: 0.8275862069 | O44: 0.1724137931 | P44: 13 | Q44: 11 | R44: 5 | S44: 29 | T44: 0.9655172414 | U44: 0.03448275862 | V44: 26 | W44: 2 | X44: 1
A45: QWE | B45: SOUTH WEST LONDON ICB | C45: 18 | D45: 0.9444444444 | E45: 0 | F45: 15 | G45: 2 | H45: 1 | I45: 0 | J45: 0 | K45: 0 | L45: 8 | M45: 0 | N45: 0.875 | O45: 0.125 | P45: 7 | Q45: 0 | R45: 1 | S45: 8 | T45: 1 | U45: 0 | V45: 8 | W45: 0 | X45: 0
A46: QWO | B46: WEST YORKSHIRE ICB | C46: 36 | D46: 0.9722222222 | E46: 0.02777777778 | F46: 27 | G46: 8 | H46: 0 | I46: 1 | J46: 0 | K46: 0 | L46: 30 | M46: 85 | N46: 1 | O46: 0 | P46: 28 | Q46: 2 | R46: 0 | S46: 22 | T46: 1 | U46: 0 | V46: 20 | W46: 2 | X46: 0
A47: QWU | B47: COVENTRY AND WARWICKSHIRE ICB | C47: 0 | D47: NA | E47: NA | F47: 0 | G47: 0 | H47: 0 | I47: 0 | J47: 0 | K47: 0 | L47: 0 | M47: 23 | N47: NA | O47: NA | P47: 0 | Q47: 0 | R47: 0 | S47: 0 | T47: NA | U47: NA | V47: 0 | W47: 0 | X47: 0
A48: QXU | B48: SURREY HEARTLANDS ICB | C48: 0 | D48: NA | E48: NA | F48: 0 | G48: 0 | H48: 0 | I48: 0 | J48: 0 | K48: 0 | L48: 0 | M48: 8 | N48: NA | O48: NA | P48: 0 | Q48: 0 | R48: 0 | S48: 0 | T48: NA | U48: NA | V48: 0 | W48: 0 | X48: 0
A49: QYG | B49: CHESHIRE AND MERSEYSIDE ICB | C49: 41 | D49: 0.9512195122 | E49: 0 | F49: 35 | G49: 4 | H49: 2 | I49: 0 | J49: 0 | K49: 0 | L49: 0 | M49: 0 | N49: NA | O49: NA | P49: 0 | Q49: 0 | R49: 0 | S49: 0 | T49: NA | U49: NA | V49: 0 | W49: 0 | X49: 0

Sheet Organisations
A3: ICB Code | B3: Trust Code | C3: Trust Name | D3: Question 1 | G3: Question 1 | M3: Question 2 | Q3: Question 2 | T3: Question 3 | W3: Question 3 | Z3: Mode of Collection - Question 1
D4: Total Responses | E4: Percentage Positive | F4: Percentage Negative | G4: Breakdown of Responses | M4: Total Responses | N4: Total Eligible | O4: Percentage Positive | P4: Percentage Negative | Q4: Breakdown of Responses | T4: Total Responses | U4: Percentage Positive | V4: Percentage Negative | W4: Breakdown of Responses
G5: Very Good | H5: Good | I5: Neither Good nor Poor | J5: Poor | K5: Very Poor | L5: Don't Know | Q5: Yes definitely | R5: Yes to some extent | S5: No | W5: Yes definitely | X5: Yes to some extent | Y5: No | Z5: SMS | AA5: Smartphone | AB5: Smartphone After | AC5: Paper | AD5: Paper After | AE5: Telephone | AF5: Online | AG5: Other
C6: England | D6: 807 | E6: 0.9293680297 | F6: 0.02230483271 | G6: 616 | H6: 134 | I6: 36 | J6: 11 | K6: 7 | L6: 3 | M6: 485 | N6: 1877 | O6: 0.9608247423 | P6: 0.03917525773 | Q6: 410 | R6: 56 | S6: 19 | T6: 478 | U6: 0.9958158996 | V6: 0.004184100418 | W6: 454 | X6: 22 | Y6: 2 | Z6: 28 | AA6: 34 | AB6: 10 | AC6: 143 | AD6: 40 | AE6: 55 | AF6: 497 | AG6: 0
C7: Selection (excluding suppressed data) | D7: =SUBTOTAL(9,D8:D880) -> 807 | E7: =IFERROR((G7+H7)/SUM(G7:L7), "-") -> 0.9281961471 | F7: =IFERROR((J7+K7)/SUM(G7:L7), "-") -> 0.01926444834 | G7: =SUBTOTAL(9,G8:G880) -> 443 | H7: =SUBTOTAL(9,H8:H880) -> 87 | I7: =SUBTOTAL(9,I8:I880) -> 27 | J7: =SUBTOTAL(9,J8:J880) -> 6 | K7: =SUBTOTAL(9,K8:K880) -> 5 | L7: =SUBTOTAL(9,L8:L880) -> 3 | M7: =SUBTOTAL(9,M8:M880) -> 485 | N7: =SUBTOTAL(9,N8:N880) -> 1877 | O7: =IFERROR((Q7+R7)/SUM(Q7:S7), "-") -> 0.9696969697 | P7: =IFERROR(S7/SUM(Q7:S7), "-") -> 0.0303030303 | Q7: =SUBTOTAL(9,Q8:Q880) -> 311 | R7: =SUBTOTAL(9,R8:R880) -> 41 | S7: =SUBTOTAL(9,S8:S880) -> 11 | T7: =SUBTOTAL(9,T8:T880) -> 478 | U7: =IFERROR((W7+X7)/SUM(W7:Y7), "-") -> 0.9952267303 | V7: =IFERROR(Y7/SUM(W7:Y7), "-") -> 0.00477326969 | W7: =SUBTOTAL(9,W8:W880) -> 397 | X7: 20 | Y7: 2 | Z7: 18 | AA7: 20 | AB7: 0 | AC7: 78 | AD7: 38 | AE7: 35 | AF7: 357 | AG7: 0
A8: QE1 | B8: RW5 | C8: LANCASHIRE & SOUTH CUMBRIA NHS FOUNDATION TRUST | D8: 5 | E8: 0.8 | F8: 0.2 | G8: * | H8: * | I8: * | J8: * | K8: * | L8: * | M8: 5 | N8: 0 | O8: 0.8 | P8: 0.2 | Q8: * | R8: * | S8: * | T8: 5 | U8: 1 | V8: 0 | W8: 5 | X8: 0 | Y8: 0 | Z8: * | AA8: * | AB8: * | AC8: * | AD8: * | AE8: * | AF8: * | AG8: *
A9: QF7 | B9: RXE | C9: ROTHERHAM DONCASTER AND SOUTH HUMBER NHS FOUNDATION TRUST | D9: 2 | E9: * | F9: * | G9: * | H9: * | I9: * | J9: * | K9: * | L9: * | M9: 1 | N9: 0 | O9: * | P9: * | Q9: * | R9: * | S9: * | T9: 1 | U9: * | V9: * | W9: * | X9: * | Y9: * | Z9: * | AA9: * | AB9: * | AC9: * | AD9: * | AE9: * | AF9: * | AG9: *
A10: QF7 | B10: RHQ | C10: SHEFFIELD TEACHING HOSPITALS NHS FOUNDATION TRUST | D10: 0 | E10: NA | F10: NA | G10: 0 | H10: 0 | I10: 0 | J10: 0 | K10: 0 | L10: 0 | M10: 0 | N10: 0 | O10: NA | P10: NA | Q10: 0 | R10: 0 | S10: 0 | T10: 0 | U10: NA | V10: NA | W10: 0 | X10: 0 | Y10: 0 | Z10: 0 | AA10: 0 | AB10: 0 | AC10: 0 | AD10: 0 | AE10: 0 | AF10: 0 | AG10: 0
A11: QF7 | B11: RFR | C11: THE ROTHERHAM NHS FOUNDATION TRUST | D11: 150 | E11: 0.98 | F11: 0.01333333333 | G11: * | H11: * | I11: * | J11: * | K11: * | L11: * | M11: 0 | N11: 0 | O11: NA | P11: NA | Q11: 0 | R11: 0 | S11: 0 | T11: 0 | U11: NA | V11: NA | W11: 0 | X11: 0 | Y11: 0 | Z11: * | AA11: * | AB11: * | AC11: * | AD11: * | AE11: * | AF11: * | AG11: *
A12: QHG | B12: RD8 | C12: MILTON KEYNES UNIVERSITY HOSPITAL NHS FOUNDATION TRUST | D12: 43 | E12: 0.9069767442 | F12: 0 | G12: 33 | H12: 6 | I12: 4 | J12: 0 | K12: 0 | L12: 0 | M12: 43 | N12: 43 | O12: 0.976744186 | P12: 0.02325581395 | Q12: 37 | R12: 5 | S12: 1 | T12: 43 | U12: 1 | V12: 0 | W12: 40 | X12: 3 | Y12: 0 | Z12: 0 | AA12: 0 | AB12: 0 | AC12: 0 | AD12: 0 | AE12: 0 | AF12: 43 | AG12: 0
A13: QHL | B13: RYW | C13: BIRMINGHAM COMMUNITY HEALTHCARE NHS FOUNDATION TRUST | D13: 25 | E13: 0.92 | F13: 0 | G13: 18 | H13: 5 | I13: 2 | J13: 0 | K13: 0 | L13: 0 | M13: 25 | N13: 0 | O13: 1 | P13: 0 | Q13: 22 | R13: 3 | S13: 0 | T13: 25 | U13: 1 | V13: 0 | W13: 23 | X13: 2 | Y13: 0 | Z13: 0 | AA13: 0 | AB13: 0 | AC13: 0 | AD13: 0 | AE13: 0 | AF13: 0 | AG13: 0
A14: QHM | B14: RXP | C14: COUNTY DURHAM AND DARLINGTON NHS FOUNDATION TRUST | D14: 0 | E14: NA | F14: NA | G14: 0 | H14: 0 | I14: 0 | J14: 0 | K14: 0 | L14: 0 | M14: 0 | N14: 0 | O14: NA | P14: NA | Q14: 0 | R14: 0 | S14: 0 | T14: 0 | U14: NA | V14: NA | W14: 0 | X14: 0 | Y14: 0 | Z14: 0 | AA14: 0 | AB14: 0 | AC14: 0 | AD14: 0 | AE14: 0 | AF14: 0 | AG14: 0
A15: QHM | B15: RR7 | C15: GATESHEAD HEALTH NHS FOUNDATION TRUST | D15: 0 | E15: NA | F15: NA | G15: 0 | H15: 0 | I15: 0 | J15: 0 | K15: 0 | L15: 0 | M15: 0 | N15: 4 | O15: NA | P15: NA | Q15: 0 | R15: 0 | S15: 0 | T15: 0 | U15: NA | V15: NA | W15: 0 | X15: 0 | Y15: 0 | Z15: 0 | AA15: 0 | AB15: 0 | AC15: 0 | AD15: 0 | AE15: 0 | AF15: 0 | AG15: 0
A16: QHM | B16: RNN | C16: NORTH CUMBRIA INTEGRATED CARE NHS FOUNDATION TRUST | D16: 4 | E16: * | F16: * | G16: * | H16: * | I16: * | J16: * | K16: * | L16: * | M16: 4 | N16: 18 | O16: * | P16: * | Q16: * | R16: * | S16: * | T16: 4 | U16: * | V16: * | W16: * | X16: * | Y16: * | Z16: * | AA16: * | AB16: * | AC16: * | AD16: * | AE16: * | AF16: * | AG16: *
A17: QHM | B17: RVW | C17: NORTH TEES AND HARTLEPOOL NHS FOUNDATION TRUST | D17: 4 | E17: * | F17: * | G17: * | H17: * | I17: * | J17: * | K17: * | L17: * | M17: 0 | N17: 350 | O17: NA | P17: NA | Q17: 0 | R17: 0 | S17: 0 | T17: 0 | U17: NA | V17: NA | W17: 0 | X17: 0 | Y17: 0 | Z17: * | AA17: * | AB17: * | AC17: * | AD17: * | AE17: * | AF17: * | AG17: *
A18: QHM | B18: RTF | C18: NORTHUMBRIA HEALTHCARE NHS FOUNDATION TRUST | D18: 13 | E18: 1 | F18: 0 | G18: 10 | H18: 3 | I18: 0 | J18: 0 | K18: 0 | L18: 0 | M18: 11 | N18: 47 | O18: 1 | P18: 0 | Q18: 9 | R18: 2 | S18: 0 | T18: 11 | U18: 1 | V18: 0 | W18: 8 | X18: 3 | Y18: 0 | Z18: 13 | AA18: 0 | AB18: 0 | AC18: 0 | AD18: 0 | AE18: 0 | AF18: 0 | AG18: 0
A19: QHM | B19: RTR | C19: SOUTH TEES HOSPITALS NHS FOUNDATION TRUST | D19: 8 | E19: 1 | F19: 0 | G19: 5 | H19: 3 | I19: 0 | J19: 0 | K19: 0 | L19: 0 | M19: 8 | N19: 0 | O19: 1 | P19: 0 | Q19: 6 | R19: 2 | S19: 0 | T19: 8 | U19: 1 | V19: 0 | W19: 8 | X19: 0 | Y19: 0 | Z19: 5 | AA19: 0 | AB19: 0 | AC19: 0 | AD19: 0 | AE19: 0 | AF19: 3 | AG19: 0
A20: QHM | B20: R0B | C20: SOUTH TYNESIDE AND SUNDERLAND NHS FOUNDATION TRUST | D20: 26 | E20: 1 | F20: 0 | G20: 22 | H20: 4 | I20: 0 | J20: 0 | K20: 0 | L20: 0 | M20: 26 | N20: 0 | O20: 1 | P20: 0 | Q20: 26 | R20: 0 | S20: 0 | T20: 26 | U20: 1 | V20: 0 | W20: 26 | X20: 0 | Y20: 0 | Z20: 0 | AA20: 0 | AB20: 0 | AC20: 0 | AD20: 23 | AE20: 0 | AF20: 3 | AG20: 0
A21: QHM | B21: RTD | C21: THE NEWCASTLE UPON TYNE HOSPITALS NHS FOUNDATION TRUST | D21: 25 | E21: 1 | F21: 0 | G21: 24 | H21: 1 | I21: 0 | J21: 0 | K21: 0 | L21: 0 | M21: 25 | N21: 28 | O21: 1 | P21: 0 | Q21: 25 | R21: 0 | S21: 0 | T21: 25 | U21: 1 | V21: 0 | W21: 25 | X21: 0 | Y21: 0 | Z21: 0 | AA21: 0 | AB21: 0 | AC21: 25 | AD21: 0 | AE21: 0 | AF21: 0 | AG21: 0
A22: QJ2 | B22: RY8 | C22: DERBYSHIRE COMMUNITY HEALTH SERVICES NHS FOUNDATION TRUST | D22: 0 | E22: NA | F22: NA | G22: 0 | H22: 0 | I22: 0 | J22: 0 | K22: 0 | L22: 0 | M22: 0 | N22: 0 | O22: NA | P22: NA | Q22: 0 | R22: 0 | S22: 0 | T22: 0 | U22: NA | V22: NA | W22: 0 | X22: 0 | Y22: 0 | Z22: 0 | AA22: 0 | AB22: 0 | AC22: 0 | AD22: 0 | AE22: 0 | AF22: 0 | AG22: 0
A23: QJG | B23: RDE | C23: EAST SUFFOLK AND NORTH ESSEX NHS FOUNDATION TRUST | D23: 28 | E23: 0.6428571429 | F23: 0.1071428571 | G23: * | H23: * | I23: * | J23: * | K23: * | L23: * | M23: 38 | N23: 0 | O23: 0.8421052632 | P23: 0.1578947368 | Q23: * | R23: * | S23: * | T23: 38 | U23: 1 | V23: 0 | W23: 34 | X23: 4 | Y23: 0 | Z23: * | AA23: * | AB23: * | AC23: * | AD23: * | AE23: * | AF23: * | AG23: *
A24: QJG | B24: NQA | C24: PROVIDE | D24: 1 | E24: * | F24: * | G24: * | H24: * | I24: * | J24: * | K24: * | L24: * | M24: 1 | N24: 1 | O24: * | P24: * | Q24: * | R24: * | S24: * | T24: 1 | U24: * | V24: * | W24: * | X24: * | Y24: * | Z24: * | AA24: * | AB24: * | AC24: * | AD24: * | AE24: * | AF24: * | AG24: *
A25: QJK | B25: NR5 | C25: LIVEWELL SOUTHWEST | D25: 0 | E25: NA | F25: NA | G25: 0 | H25: 0 | I25: 0 | J25: 0 | K25: 0 | L25: 0 | M25: 0 | N25: 0 | O25: NA | P25: NA | Q25: 0 | R25: 0 | S25: 0 | T25: 0 | U25: NA | V25: NA | W25: 0 | X25: 0 | Y25: 0 | Z25: 0 | AA25: 0 | AB25: 0 | AC25: 0 | AD25: 0 | AE25: 0 | AF25: 0 | AG25: 0
A26: QJM | B26: RY5 | C26: LINCOLNSHIRE COMMUNITY HEALTH SERVICES NHS TRUST | D26: 18 | E26: 0.9444444444 | F26: 0.05555555556 | G26: 14 | H26: 3 | I26: 0 | J26: 1 | K26: 0 | L26: 0 | M26: 18 | N26: 215 | O26: 0.9444444444 | P26: 0.05555555556 | Q26: 15 | R26: 2 | S26: 1 | T26: 18 | U26: 1 | V26: 0 | W26: 18 | X26: 0 | Y26: 0 | Z26: 0 | AA26: 0 | AB26: 0 | AC26: 0 | AD26: 0 | AE26: 18 | AF26: 0 | AG26: 0
A27: QK1 | B27: RWE | C27: UNIVERSITY HOSPITALS OF LEICESTER NHS TRUST | D27: 15 | E27: 1 | F27: 0 | G27: 15 | H27: 0 | I27: 0 | J27: 0 | K27: 0 | L27: 0 | M27: 14 | N27: 108 | O27: 1 | P27: 0 | Q27: 13 | R27: 1 | S27: 0 | T27: 15 | U27: 1 | V27: 0 | W27: 15 | X27: 0 | Y27: 0 | Z27: 0 | AA27: 15 | AB27: 0 | AC27: 0 | AD27: 0 | AE27: 0 | AF27: 0 | AG27: 0
A28: QKK | B28: RJ1 | C28: GUY'S AND ST THOMAS' NHS FOUNDATION TRUST | D28: 3 | E28: * | F28: * | G28: * | H28: * | I28: * | J28: * | K28: * | L28: * | M28: 3 | N28: 111 | O28: * | P28: * | Q28: * | R28: * | S28: * | T28: 3 | U28: * | V28: * | W28: * | X28: * | Y28: * | Z28: * | AA28: * | AB28: * | AC28: * | AD28: * | AE28: * | AF28: * | AG28: *
A29: QKK | B29: RJZ | C29: KING'S COLLEGE HOSPITAL NHS FOUNDATION TRUST | D29: 4 | E29: * | F29: * | G29: * | H29: * | I29: * | J29: * | K29: * | L29: * | M29: 4 | N29: 0 | O29: * | P29: * | Q29: * | R29: * | S29: * | T29: 4 | U29: * | V29: * | W29: * | X29: * | Y29: * | Z29: * | AA29: * | AB29: * | AC29: * | AD29: * | AE29: * | AF29: * | AG29: *
A30: QM7 | B30: RY4 | C30: HERTFORDSHIRE COMMUNITY NHS TRUST | D30: 10 | E30: 1 | F30: 0 | G30: 8 | H30: 2 | I30: 0 | J30: 0 | K30: 0 | L30: 0 | M30: 10 | N30: 0 | O30: 0.9 | P30: 0.1 | Q30: 7 | R30: 2 | S30: 1 | T30: 10 | U30: 1 | V30: 0 | W30: 10 | X30: 0 | Y30: 0 | Z30: 0 | AA30: 0 | AB30: 0 | AC30: 0 | AD30: 0 | AE30: 0 | AF30: 10 | AG30: 0
A31: QMF | B31: RF4 | C31: BARKING, HAVERING AND REDBRIDGE UNIVERSITY HOSPITALS NHS TRUST | D31: 59 | E31: 0.8305084746 | F31: 0.03389830508 | G31: 35 | H31: 14 | I31: 6 | J31: 1 | K31: 1 | L31: 2 | M31: 2 | N31: 0 | O31: * | P31: * | Q31: * | R31: * | S31: * | T31: 2 | U31: * | V31: * | W31: * | X31: * | Y31: * | Z31: 0 | AA31: 0 | AB31: 0 | AC31: 0 | AD31: 0 | AE31: 0 | AF31: 59 | AG31: 0
A32: QMM | B32: RY3 | C32: NORFOLK COMMUNITY HEALTH AND CARE NHS TRUST | D32: 51 | E32: 0.9411764706 | F32: 0.01960784314 | G32: 41 | H32: 7 | I32: 2 | J32: 1 | K32: 0 | L32: 0 | M32: 5 | N32: 0 | O32: 1 | P32: 0 | Q32: 5 | R32: 0 | S32: 0 | T32: 5 | U32: 1 | V32: 0 | W32: 5 | X32: 0 | Y32: 0 | Z32: 0 | AA32: 0 | AB32: 0 | AC32: 0 | AD32: 0 | AE32: 0 | AF32: 51 | AG32: 0
A33: QNC | B33: RRE | C33: MIDLANDS PARTNERSHIP NHS FOUNDATION TRUST | D33: 17 | E33: 0.8823529412 | F33: 0 | G33: 13 | H33: 2 | I33: 2 | J33: 0 | K33: 0 | L33: 0 | M33: 17 | N33: 17 | O33: 0.9411764706 | P33: 0.05882352941 | Q33: 16 | R33: 0 | S33: 1 | T33: 17 | U33: 1 | V33: 0 | W33: 17 | X33: 0 | Y33: 0 | Z33: 0 | AA33: 0 | AB33: 0 | AC33: 0 | AD33: 0 | AE33: 17 | AF33: 0 | AG33: 0
A34: QNX | B34: RXC | C34: EAST SUSSEX HEALTHCARE NHS TRUST | D34: 2 | E34: * | F34: * | G34: * | H34: * | I34: * | J34: * | K34: * | L34: * | M34: 0 | N34: 0 | O34: NA | P34: NA | Q34: 0 | R34: 0 | S34: 0 | T34: 0 | U34: NA | V34: NA | W34: 0 | X34: 0 | Y34: 0 | Z34: * | AA34: * | AB34: * | AC34: * | AD34: * | AE34: * | AF34: * | AG34: *
A35: QNX | B35: RDR | C35: SUSSEX COMMUNITY NHS FOUNDATION TRUST | D35: 8 | E35: 1 | F35: 0 | G35: * | H35: * | I35: * | J35: * | K35: * | L35: * | M35: 8 | N35: 0 | O35: 1 | P35: 0 | Q35: * | R35: * | S35: * | T35: 8 | U35: 1 | V35: 0 | W35: 8 | X35: 0 | Y35: 0 | Z35: * | AA35: * | AB35: * | AC35: * | AD35: * | AE35: * | AF35: * | AG35: *
A36: QOC | B36: R1D | C36: SHROPSHIRE COMMUNITY HEALTH NHS TRUST | D36: 0 | E36: NA | F36: NA | G36: 0 | H36: 0 | I36: 0 | J36: 0 | K36: 0 | L36: 0 | M36: 0 | N36: 0 | O36: NA | P36: NA | Q36: 0 | R36: 0 | S36: 0 | T36: 0 | U36: NA | V36: NA | W36: 0 | X36: 0 | Y36: 0 | Z36: 0 | AA36: 0 | AB36: 0 | AC36: 0 | AD36: 0 | AE36: 0 | AF36: 0 | AG36: 0
A37: QOP | B37: RMC | C37: BOLTON NHS FOUNDATION TRUST | D37: 2 | E37: * | F37: * | G37: * | H37: * | I37: * | J37: * | K37: * | L37: * | M37: 0 | N37: 0 | O37: NA | P37: NA | Q37: 0 | R37: 0 | S37: 0 | T37: 0 | U37: NA | V37: NA | W37: 0 | X37: 0 | Y37: 0 | Z37: * | AA37: * | AB37: * | AC37: * | AD37: * | AE37: * | AF37: * | AG37: *
A38: QOP | B38: R0A | C38: MANCHESTER UNIVERSITY NHS FOUNDATION TRUST | D38: 1 | E38: * | F38: * | G38: * | H38: * | I38: * | J38: * | K38: * | L38: * | M38: 0 | N38: 45 | O38: NA | P38: NA | Q38: 0 | R38: 0 | S38: 0 | T38: 0 | U38: NA | V38: NA | W38: 0 | X38: 0 | Y38: 0 | Z38: * | AA38: * | AB38: * | AC38: * | AD38: * | AE38: * | AF38: * | AG38: *
A39: QOP | B39: RWJ | C39: STOCKPORT NHS FOUNDATION TRUST | D39: 5 | E39: 1 | F39: 0 | G39: 4 | H39: 1 | I39: 0 | J39: 0 | K39: 0 | L39: 0 | M39: 5 | N39: 0 | O39: 1 | P39: 0 | Q39: 4 | R39: 1 | S39: 0 | T39: 5 | U39: 1 | V39: 0 | W39: 4 | X39: 1 | Y39: 0 | Z39: 0 | AA39: 0 | AB39: 0 | AC39: 0 | AD39: 0 | AE39: 0 | AF39: 5 | AG39: 0
A40: QOP | B40: RMP | C40: TAMESIDE AND GLOSSOP INTEGRATED CARE NHS FOUNDATION TRUST | D40: 6 | E40: 1 | F40: 0 | G40: 6 | H40: 0 | I40: 0 | J40: 0 | K40: 0 | L40: 0 | M40: 6 | N40: 20 | O40: 1 | P40: 0 | Q40: 6 | R40: 0 | S40: 0 | T40: 6 | U40: 1 | V40: 0 | W40: 6 | X40: 0 | Y40: 0 | Z40: 0 | AA40: 0 | AB40: 0 | AC40: 0 | AD40: 0 | AE40: 0 | AF40: 6 | AG40: 0
A41: QOP | B41: RRF | C41: WRIGHTINGTON, WIGAN AND LEIGH NHS FOUNDATION TRUST | D41: 0 | E41: NA | F41: NA | G41: 0 | H41: 0 | I41: 0 | J41: 0 | K41: 0 | L41: 0 | M41: 0 | N41: 0 | O41: NA | P41: NA | Q41: 0 | R41: 0 | S41: 0 | T41: 0 | U41: NA | V41: NA | W41: 0 | X41: 0 | Y41: 0 | Z41: 0 | AA41: 0 | AB41: 0 | AC41: 0 | AD41: 0 | AE41: 0 | AF41: 0 | AG41: 0
A42: QOQ | B42: NNF | C42: CITY HEALTH CARE PARTNERSHIP CIC | D42: 0 | E42: NA | F42: NA | G42: 0 | H42: 0 | I42: 0 | J42: 0 | K42: 0 | L42: 0 | M42: 0 | N42: 0 | O42: NA | P42: NA | Q42: 0 | R42: 0 | S42: 0 | T42: 0 | U42: NA | V42: NA | W42: 0 | X42: 0 | Y42: 0 | Z42: 0 | AA42: 0 | AB42: 0 | AC42: 0 | AD42: 0 | AE42: 0 | AF42: 0 | AG42: 0
A43: QOQ | B43: RJL | C43: NORTHERN LINCOLNSHIRE AND GOOLE NHS FOUNDATION TRUST | D43: 0 | E43: NA | F43: NA | G43: 0 | H43: 0 | I43: 0 | J43: 0 | K43: 0 | L43: 0 | M43: 0 | N43: 0 | O43: NA | P43: NA | Q43: 0 | R43: 0 | S43: 0 | T43: 0 | U43: NA | V43: NA | W43: 0 | X43: 0 | Y43: 0 | Z43: 0 | AA43: 0 | AB43: 0 | AC43: 0 | AD43: 0 | AE43: 0 | AF43: 0 | AG43: 0
A44: QOQ | B44: RCB | C44: YORK AND SCARBOROUGH TEACHING HOSPITALS NHS FOUNDATION TRUST | D44: 4 | E44: * | F44: * | G44: * | H44: * | I44: * | J44: * | K44: * | L44: * | M44: 4 | N44: 7 | O44: * | P44: * | Q44: * | R44: * | S44: * | T44: 4 | U44: * | V44: * | W44: * | X44: * | Y44: * | Z44: * | AA44: * | AB44: * | AC44: * | AD44: * | AE44: * | AF44: * | AG44: *
A45: QOX | B45: AXG | C45: WILTSHIRE HEALTH & CARE | D45: 2 | E45: * | F45: * | G45: * | H45: * | I45: * | J45: * | K45: * | L45: * | M45: 2 | N45: 0 | O45: * | P45: * | Q45: * | R45: * | S45: * | T45: 2 | U45: * | V45: * | W45: * | X45: * | Y45: * | Z45: * | AA45: * | AB45: * | AC45: * | AD45: * | AE45: * | AF45: * | AG45: *
A46: QPM | B46: RP1 | C46: NORTHAMPTONSHIRE HEALTHCARE NHS FOUNDATION TRUST | D46: 0 | E46: NA | F46: NA | G46: 0 | H46: 0 | I46: 0 | J46: 0 | K46: 0 | L46: 0 | M46: 0 | N46: 0 | O46: NA | P46: NA | Q46: 0 | R46: 0 | S46: 0 | T46: 0 | U46: NA | V46: NA | W46: 0 | X46: 0 | Y46: 0 | Z46: 0 | AA46: 0 | AB46: 0 | AC46: 0 | AD46: 0 | AE46: 0 | AF46: 0 | AG46: 0
A47: QR1 | B47: RTQ | C47: GLOUCESTERSHIRE HEALTH AND CARE NHS FOUNDATION TRUST | D47: 19 | E47: 0.9473684211 | F47: 0.05263157895 | G47: 13 | H47: 5 | I47: 0 | J47: 0 | K47: 1 | L47: 0 | M47: 19 | N47: 0 | O47: 1 | P47: 0 | Q47: 15 | R47: 4 | S47: 0 | T47: 19 | U47: 0.9473684211 | V47: 0.05263157895 | W47: 17 | X47: 1 | Y47: 1 | Z47: 0 | AA47: 0 | AB47: 0 | AC47: 0 | AD47: 0 | AE47: 0 | AF47: 19 | AG47: 0
A48: QRL | B48: R1C | C48: SOLENT NHS TRUST | D48: 0 | E48: NA | F48: NA | G48: 0 | H48: 0 | I48: 0 | J48: 0 | K48: 0 | L48: 0 | M48: 0 | N48: 0 | O48: NA | P48: NA | Q48: 0 | R48: 0 | S48: 0 | T48: 0 | U48: NA | V48: NA | W48: 0 | X48: 0 | Y48: 0 | Z48: 0 | AA48: 0 | AB48: 0 | AC48: 0 | AD48: 0 | AE48: 0 | AF48: 0 | AG48: 0
A49: QRL | B49: RW1 | C49: SOUTHERN HEALTH NHS FOUNDATION TRUST | D49: 26 | E49: 0.9615384615 | F49: 0 | G49: 22 | H49: 3 | I49: 1 | J49: 0 | K49: 0 | L49: 0 | M49: 26 | N49: 662 | O49: 1 | P49: 0 | Q49: 23 | R49: 3 | S49: 0 | T49: 26 | U49: 1 | V49: 0 | W49: 26 | X49: 0 | Y49: 0 | Z49: 0 | AA49: 0 | AB49: 0 | AC49: 0 | AD49: 0 | AE49: 0 | AF49: 26 | AG49: 0
A50: QRV | B50: RYJ | C50: IMPERIAL COLLEGE HEALTHCARE NHS TRUST | D50: 5 | E50: 0.8 | F50: 0.2 | G50: 3 | H50: 1 | I50: 0 | J50: 0 | K50: 1 | L50: 0 | M50: 5 | N50: 39 | O50: 0.8 | P50: 0.2 | Q50: 3 | R50: 1 | S50: 1 | T50: 5 | U50: 1 | V50: 0 | W50: 3 | X50: 2 | Y50: 0 | Z50: 0 | AA50: 0 | AB50: 0 | AC50: 0 | AD50: 0 | AE50: 0 | AF50: 5 | AG50: 0
A51: QRV | B51: R1K | C51: LONDON NORTH WEST UNIVERSITY HEALTHCARE NHS TRUST | D51: 0 | E51: NA | F51: NA | G51: 0 | H51: 0 | I51: 0 | J51: 0 | K51: 0 | L51: 0 | M51: 0 | N51: 8 | O51: NA | P51: NA | Q51: 0 | R51: 0 | S51: 0 | T51: 0 | U51: NA | V51: NA | W51: 0 | X51: 0 | Y51: 0 | Z51: 0 | AA51: 0 | AB51: 0 | AC51: 0 | AD51: 0 | AE51: 0 | AF51: 0 | AG51: 0
A52: QT1 | B52: NR3 | C52: NOTTINGHAM CITYCARE PARTNERSHIP | D52: 0 | E52: NA | F52: NA | G52: 0 | H52: 0 | I52: 0 | J52: 0 | K52: 0 | L52: 0 | M52: 0 | N52: 11 | O52: NA | P52: NA | Q52: 0 | R52: 0 | S52: 0 | T52: 0 | U52: NA | V52: NA | W52: 0 | X52: 0 | Y52: 0 | Z52: 0 | AA52: 0 | AB52: 0 | AC52: 0 | AD52: 0 | AE52: 0 | AF52: 0 | AG52: 0
A53: QT6 | B53: REF | C53: ROYAL CORNWALL HOSPITALS NHS TRUST | D53: 38 | E53: 1 | F53: 0 | G53: 32 | H53: 6 | I53: 0 | J53: 0 | K53: 0 | L53: 0 | M53: 33 | N53: 0 | O53: 1 | P53: 0 | Q53: 31 | R53: 2 | S53: 0 | T53: 33 | U53: 1 | V53: 0 | W53: 33 | X53: 0 | Y53: 0 | Z53: 0 | AA53: 5 | AB53: 0 | AC53: 0 | AD53: 0 | AE53: 0 | AF53: 33 | AG53: 0
A54: QU9 | B54: RTH | C54: OXFORD UNIVERSITY HOSPITALS NHS FOUNDATION TRUST | D54: 2 | E54: * | F54: * | G54: * | H54: * | I54: * | J54: * | K54: * | L54: * | M54: 2 | N54: 0 | O54: * | P54: * | Q54: * | R54: * | S54: * | T54: 2 | U54: * | V54: * | W54: * | X54: * | Y54: * | Z54: * | AA54: * | AB54: * | AC54: * | AD54: * | AE54: * | AF54: * | AG54: *
A55: QUA | B55: RNA | C55: THE DUDLEY GROUP NHS FOUNDATION TRUST | D55: 38 | E55: 1 | F55: 0 | G55: 38 | H55: 0 | I55: 0 | J55: 0 | K55: 0 | L55: 0 | M55: 34 | N55: 0 | O55: 1 | P55: 0 | Q55: * | R55: * | S55: * | T55: 34 | U55: 1 | V55: 0 | W55: * | X55: * | Y55: * | Z55: 0 | AA55: 0 | AB55: 0 | AC55: 38 | AD55: 0 | AE55: 0 | AF55: 0 | AG55: 0
A56: QUA | B56: RL4 | C56: THE ROYAL WOLVERHAMPTON NHS TRUST | D56: 0 | E56: NA | F56: NA | G56: 0 | H56: 0 | I56: 0 | J56: 0 | K56: 0 | L56: 0 | M56: 0 | N56: 0 | O56: NA | P56: NA | Q56: 0 | R56: 0 | S56: 0 | T56: 0 | U56: NA | V56: NA | W56: 0 | X56: 0 | Y56: 0 | Z56: 0 | AA56: 0 | AB56: 0 | AC56: 0 | AD56: 0 | AE56: 0 | AF56: 0 | AG56: 0
A57: QUA | B57: RBK | C57: WALSALL HEALTHCARE NHS TRUST | D57: 1 | E57: * | F57: * | G57: * | H57: * | I57: * | J57: * | K57: * | L57: * | M57: 1 | N57: 1 | O57: * | P57: * | Q57: * | R57: * | S57: * | T57: 1 | U57: * | V57: * | W57: * | X57: * | Y57: * | Z57: * | AA57: * | AB57: * | AC57: * | AD57: * | AE57: * | AF57: * | AG57: *
A58: QUE | B58: RGT | C58: CAMBRIDGE UNIVERSITY HOSPITALS NHS FOUNDATION TRUST | D58: 1 | E58: * | F58: * | G58: * | H58: * | I58: * | J58: * | K58: * | L58: * | M58: 1 | N58: 14 | O58: * | P58: * | Q58: * | R58: * | S58: * | T58: 1 | U58: * | V58: * | W58: * | X58: * | Y58: * | Z58: * | AA58: * | AB58: * | AC58: * | AD58: * | AE58: * | AF58: * | AG58: *
A59: QUE | B59: RT1 | C59: CAMBRIDGESHIRE AND PETERBOROUGH NHS FOUNDATION TRUST | D59: 12 | E59: 0.9166666667 | F59: 0.08333333333 | G59: * | H59: * | I59: * | J59: * | K59: * | L59: * | M59: 12 | N59: 12 | O59: 1 | P59: 0 | Q59: * | R59: * | S59: * | T59: 12 | U59: 1 | V59: 0 | W59: 12 | X59: 0 | Y59: 0 | Z59: * | AA59: * | AB59: * | AC59: * | AD59: * | AE59: * | AF59: * | AG59: *
A60: QVV | B60: RDY | C60: DORSET HEALTHCARE UNIVERSITY NHS FOUNDATION TRUST | D60: 29 | E60: 0.5862068966 | F60: 0.1379310345 | G60: 10 | H60: 7 | I60: 7 | J60: 2 | K60: 2 | L60: 1 | M60: 29 | N60: 0 | O60: 0.8275862069 | P60: 0.1724137931 | Q60: 13 | R60: 11 | S60: 5 | T60: 29 | U60: 0.9655172414 | V60: 0.03448275862 | W60: 26 | X60: 2 | Y60: 1 | Z60: 0 | AA60: 0 | AB60: 0 | AC60: 0 | AD60: 0 | AE60: 0 | AF60: 29 | AG60: 0
A61: QWE | B61: RVR | C61: EPSOM AND ST HELIER UNIVERSITY HOSPITALS NHS TRUST | D61: 10 | E61: 1 | F61: 0 | G61: 9 | H61: 1 | I61: 0 | J61: 0 | K61: 0 | L61: 0 | M61: 0 | N61: 0 | O61: NA | P61: NA | Q61: 0 | R61: 0 | S61: 0 | T61: 0 | U61: NA | V61: NA | W61: 0 | X61: 0 | Y61: 0 | Z61: 0 | AA61: 0 | AB61: 0 | AC61: 0 | AD61: 10 | AE61: 0 | AF61: 0 | AG61: 0
A62: QWE | B62: RJ7 | C62: ST GEORGE'S UNIVERSITY HOSPITALS NHS FOUNDATION TRUST | D62: 8 | E62: 0.875 | F62: 0 | G62: 6 | H62: 1 | I62: 1 | J62: 0 | K62: 0 | L62: 0 | M62: 8 | N62: 0 | O62: 0.875 | P62: 0.125 | Q62: 7 | R62: 0 | S62: 1 | T62: 8 | U62: 1 | V62: 0 | W62: 8 | X62: 0 | Y62: 0 | Z62: 0 | AA62: 0 | AB62: 0 | AC62: 0 | AD62: 0 | AE62: 0 | AF62: 8 | AG62: 0
A63: QWO | B63: RCF | C63: AIREDALE NHS FOUNDATION TRUST | D63: 0 | E63: NA | F63: NA | G63: 0 | H63: 0 | I63: 0 | J63: 0 | K63: 0 | L63: 0 | M63: 0 | N63: 0 | O63: NA | P63: NA | Q63: 0 | R63: 0 | S63: 0 | T63: 0 | U63: NA | V63: NA | W63: 0 | X63: 0 | Y63: 0 | Z63: 0 | AA63: 0 | AB63: 0 | AC63: 0 | AD63: 0 | AE63: 0 | AF63: 0 | AG63: 0
A64: QWO | B64: RAE | C64: BRADFORD TEACHING HOSPITALS NHS FOUNDATION TRUST | D64: 0 | E64: NA | F64: NA | G64: 0 | H64: 0 | I64: 0 | J64: 0 | K64: 0 | L64: 0 | M64: 0 | N64: 0 | O64: NA | P64: NA | Q64: 0 | R64: 0 | S64: 0 | T64: 0 | U64: NA | V64: NA | W64: 0 | X64: 0 | Y64: 0 | Z64: 0 | AA64: 0 | AB64: 0 | AC64: 0 | AD64: 0 | AE64: 0 | AF64: 0 | AG64: 0
A65: QWO | B65: RY6 | C65: LEEDS COMMUNITY HEALTHCARE NHS TRUST | D65: 8 | E65: 0.875 | F65: 0.125 | G65: 5 | H65: 2 | I65: 0 | J65: 1 | K65: 0 | L65: 0 | M65: 8 | N65: 8 | O65: 1 | P65: 0 | Q65: 6 | R65: 2 | S65: 0 | T65: 8 | U65: 1 | V65: 0 | W65: 6 | X65: 2 | Y65: 0 | Z65: 0 | AA65: 0 | AB65: 0 | AC65: 2 | AD65: 0 | AE65: 0 | AF65: 6 | AG65: 0
A66: QWO | B66: RXF | C66: MID YORKSHIRE HOSPITALS NHS TRUST | D66: 28 | E66: 1 | F66: 0 | G66: 22 | H66: 6 | I66: 0 | J66: 0 | K66: 0 | L66: 0 | M66: 22 | N66: 77 | O66: 1 | P66: 0 | Q66: 22 | R66: 0 | S66: 0 | T66: 14 | U66: 1 | V66: 0 | W66: 14 | X66: 0 | Y66: 0 | Z66: 0 | AA66: 0 | AB66: 0 | AC66: 0 | AD66: 5 | AE66: 0 | AF66: 23 | AG66: 0
A67: QWU | B67: RLT | C67: GEORGE ELIOT HOSPITAL NHS TRUST | D67: 0 | E67: NA | F67: NA | G67: 0 | H67: 0 | I67: 0 | J67: 0 | K67: 0 | L67: 0 | M67: 0 | N67: 0 | O67: NA | P67: NA | Q67: 0 | R67: 0 | S67: 0 | T67: 0 | U67: NA | V67: NA | W67: 0 | X67: 0 | Y67: 0 | Z67: 0 | AA67: 0 | AB67: 0 | AC67: 0 | AD67: 0 | AE67: 0 | AF67: 0 | AG67: 0
A68: QWU | B68: RJC | C68: SOUTH WARWICKSHIRE UNIVERSITY NHS FOUNDATION TRUST | D68: 0 | E68: NA | F68: NA | G68: 0 | H68: 0 | I68: 0 | J68: 0 | K68: 0 | L68: 0 | M68: 0 | N68: 15 | O68: NA | P68: NA | Q68: 0 | R68: 0 | S68: 0 | T68: 0 | U68: NA | V68: NA | W68: 0 | X68: 0 | Y68: 0 | Z68: 0 | AA68: 0 | AB68: 0 | AC68: 0 | AD68: 0 | AE68: 0 | AF68: 0 | AG68: 0
A69: QWU | B69: RKB | C69: UNIVERSITY HOSPITALS COVENTRY AND WARWICKSHIRE NHS TRUST | D69: 0 | E69: NA | F69: NA | G69: 0 | H69: 0 | I69: 0 | J69: 0 | K69: 0 | L69: 0 | M69: 0 | N69: 8 | O69: NA | P69: NA | Q69: 0 | R69: 0 | S69: 0 | T69: 0 | U69: NA | V69: NA | W69: 0 | X69: 0 | Y69: 0 | Z69: 0 | AA69: 0 | AB69: 0 | AC69: 0 | AD69: 0 | AE69: 0 | AF69: 0 | AG69: 0
A70: QXU | B70: NDJ | C70: FIRST COMMUNITY HEALTH AND CARE CIC | D70: 0 | E70: NA | F70: NA | G70: 0 | H70: 0 | I70: 0 | J70: 0 | K70: 0 | L70: 0 | M70: 0 | N70: 8 | O70: NA | P70: NA | Q70: 0 | R70: 0 | S70: 0 | T70: 0 | U70: NA | V70: NA | W70: 0 | X70: 0 | Y70: 0 | Z70: 0 | AA70: 0 | AB70: 0 | AC70: 0 | AD70: 0 | AE70: 0 | AF70: 0 | AG70: 0
A71: QXU | B71: RA2 | C71: ROYAL SURREY COUNTY HOSPITAL NHS FOUNDATION TRUST | D71: 0 | E71: NA | F71: NA | G71: 0 | H71: 0 | I71: 0 | J71: 0 | K71: 0 | L71: 0 | M71: 0 | N71: 0 | O71: NA | P71: NA | Q71: 0 | R71: 0 | S71: 0 | T71: 0 | U71: NA | V71: NA | W71: 0 | X71: 0 | Y71: 0 | Z71: 0 | AA71: 0 | AB71: 0 | AC71: 0 | AD71: 0 | AE71: 0 | AF71: 0 | AG71: 0
A72: QYG | B72: RW4 | C72: MERSEY CARE NHS FOUNDATION TRUST | D72: 41 | E72: 0.9512195122 | F72: 0 | G72: 35 | H72: 4 | I72: 2 | J72: 0 | K72: 0 | L72: 0 | M72: 0 | N72: 0 | O72: NA | P72: NA | Q72: 0 | R72: 0 | S72: 0 | T72: 0 | U72: NA | V72: NA | W72: 0 | X72: 0 | Y72: 0 | Z72: 0 | AA72: 0 | AB72: 0 | AC72: 13 | AD72: 0 | AE72: 0 | AF72: 28 | AG72: 0

Sheet BS
B1: Sort | C1: Region (LO) Code | D1: Region (LO) name | E1: Trust code | F1: Trust name | G1: Site Code | H1: Site Name | J1: Sort Lists: | K1: Sort range… | L1: Sort range… | M1: Sort range… | N1: Reference Region List: | O1: Code… | P1: Name… | Q1: Linked Region List: | R1: Code… | S1: Name… | T1: Reference Lists: | U1: Code… | V1: Code… | W1: Name… | X1: Code… | Y1: Name… | Z1: Trusts Linked Lists: | AA1: Code… | AB1: Name… | AC1: Sites Linked Lists: | AH1: CSV Headers
A2: Region (LO) | B2: 1 | C2: 1 | D2: 1 | E2: - | F2: - | G2: - | H2: - | K2: ICB Code | L2: ICB Code | M2: ICB Code | O2: QE1 | P2: LANCASHIRE AND SOUTH CUMBRIA ICB | R2: QE1 | S2: LANCASHIRE AND SOUTH CUMBRIA ICB | U2: QE1 | V2: RW5 | W2: LANCASHIRE & SOUTH CUMBRIA NHS FOUNDATION TRUST | AA2: AXG | AB2: AIREDALE NHS FOUNDATION TRUST | AH2: Breakdown | AI2: STP Code | AJ2: Trust Code | AK2: Trust Name | AL2: Q1 - Total Responses | AM2: Q1 - Percentage Positive | AN2: Q1 - Percentage Negative | AO2: Q1 - Very Good | AP2: Q1 - Good | AQ2: Q1 - Neither Good nor Poor | AR2: Q1 - Poor | AS2: Q1 - Very Poor | AT2: Q1 - Don't Know | AU2: Q2 - Total Responses | AV2: Q2 - Total Eligible | AW2: Q2 - Percentage Positive | AX2: Q2 - Percentage Negative | AY2: Q2 - Yes definitely | AZ2: Q2 - Yes to some extent | BA2: Q2 - No | BB2: Q3 - Total Responses | BC2: Q3 - Percentage Positive | BD2: Q3 - Percentage Negative | BE2: Q3 - Yes definitely | BF2: Q3 - Yes to some extent | BG2: Q3 - No
A3: Trusts | B3: 1 | C3: 1 | D3: 1 | E3: 1 | F3: 1 | G3: - | H3: - | K3: ICB Name | L3: Organisation Code | M3: Trust Code | O3: QF7 | P3: SOUTH YORKSHIRE ICB | R3: QF7 | S3: SOUTH YORKSHIRE ICB | U3: QF7 | V3: RXE | W3: ROTHERHAM DONCASTER AND SOUTH HUMBER NHS FOUNDATION TRUST | AA3: NDJ | AB3: BARKING, HAVERING AND REDBRIDGE UNIVERSITY HOSPITALS NHS TRUST
A4: Site | B4: 1 | C4: 1 | D4: 1 | E4: 1 | F4: 1 | G4: 1 | H4: 1 | K4: Total Responses - Q1 | L4: Organisation Name | M4: Trust Name | O4: QGH | P4: HEREFORDSHIRE AND WORCESTERSHIRE ICB | R4: QGH | S4: HEREFORDSHIRE AND WORCESTERSHIRE ICB | U4: QF7 | V4: RHQ | W4: SHEFFIELD TEACHING HOSPITALS NHS FOUNDATION TRUST | AA4: NNF | AB4: BIRMINGHAM COMMUNITY HEALTHCARE NHS FOUNDATION TRUST | AH4: Collection Mode | AI4: STP Code | AJ4: Trust Code | AK4: Trust Name | AL4: SMS | AM4: Smartphone | AN4: Smartphone After | AO4: Paper | AP4: Paper After | AQ4: Telephone | AR4: Online | AS4: Other
K5: Percentage Positive - Q1 | L5: Total Responses - Q1 | M5: Site Code | O5: QH8 | P5: MID AND SOUTH ESSEX ICB | R5: QH8 | S5: MID AND SOUTH ESSEX ICB | U5: QF7 | V5: RFR | W5: THE ROTHERHAM NHS FOUNDATION TRUST | AA5: NQA | AB5: BOLTON NHS FOUNDATION TRUST
K6: Percentage Negative - Q1 | L6: Percentage Positive - Q1 | M6: Site Name | O6: QHG | P6: BEDFORDSHIRE, LUTON AND MILTON KEYNES ICB | R6: QHG | S6: BEDFORDSHIRE, LUTON AND MILTON KEYNES ICB | U6: QHG | V6: RD8 | W6: MILTON KEYNES UNIVERSITY HOSPITAL NHS FOUNDATION TRUST | AA6: NR3 | AB6: BRADFORD TEACHING HOSPITALS NHS FOUNDATION TRUST
K7: Very Good - Q1 | L7: Percentage Negative - Q1 | M7: Total Responses | O7: QHL | P7: BIRMINGHAM AND SOLIHULL ICB | R7: QHL | S7: BIRMINGHAM AND SOLIHULL ICB | U7: QHL | V7: RYW | W7: BIRMINGHAM COMMUNITY HEALTHCARE NHS FOUNDATION TRUST | AA7: NR5 | AB7: CAMBRIDGE UNIVERSITY HOSPITALS NHS FOUNDATION TRUST
K8: Good - Q1 | L8: Very Good - Q1 | M8: Total Eligible | O8: QHM | P8: NORTH EAST AND NORTH CUMBRIA ICB | R8: QHM | S8: NORTH EAST AND NORTH CUMBRIA ICB | U8: QHM | V8: RXP | W8: COUNTY DURHAM AND DARLINGTON NHS FOUNDATION TRUST | AA8: R0A | AB8: CAMBRIDGESHIRE AND PETERBOROUGH NHS FOUNDATION TRUST
K9: Neither Good nor Poor - Q1 | L9: Good - Q1 | M9: Percentage Positive | O9: QJ2 | P9: DERBY AND DERBYSHIRE ICB | R9: QJ2 | S9: DERBY AND DERBYSHIRE ICB | U9: QHM | V9: RR7 | W9: GATESHEAD HEALTH NHS FOUNDATION TRUST | AA9: R0B | AB9: CITY HEALTH CARE PARTNERSHIP CIC
K10: Poor - Q1 | L10: Neither Good nor Poor - Q1 | M10: Percentage Negative | O10: QJG | P10: SUFFOLK AND NORTH EAST ESSEX ICB | R10: QJG | S10: SUFFOLK AND NORTH EAST ESSEX ICB | U10: QHM | V10: RNN | W10: NORTH CUMBRIA INTEGRATED CARE NHS FOUNDATION TRUST | AA10: R1C | AB10: COUNTY DURHAM AND DARLINGTON NHS FOUNDATION TRUST
K11: Very Poor - Q1 | L11: Poor - Q1 | M11: Very Good | O11: QJK | P11: DEVON ICB | R11: QJK | S11: DEVON ICB | U11: QHM | V11: RVW | W11: NORTH TEES AND HARTLEPOOL NHS FOUNDATION TRUST | AA11: R1D | AB11: DERBYSHIRE COMMUNITY HEALTH SERVICES NHS FOUNDATION TRUST
K12: Don't Know - Q1 | L12: Very Poor - Q1 | M12: Good | O12: QJM | P12: LINCOLNSHIRE ICB | R12: QJM | S12: LINCOLNSHIRE ICB | U12: QHM | V12: RTF | W12: NORTHUMBRIA HEALTHCARE NHS FOUNDATION TRUST | AA12: R1K | AB12: DORSET HEALTHCARE UNIVERSITY NHS FOUNDATION TRUST
K13: Total Responses - Q2 | L13: Don't Know - Q1 | M13: Neither Good nor Poor | O13: QK1 | P13: LEICESTER, LEICESTERSHIRE AND RUTLAND ICB | R13: QK1 | S13: LEICESTER, LEICESTERSHIRE AND RUTLAND ICB | U13: QHM | V13: RTR | W13: SOUTH TEES HOSPITALS NHS FOUNDATION TRUST | AA13: RA2 | AB13: EAST SUFFOLK AND NORTH ESSEX NHS FOUNDATION TRUST
K14: Total Eligible - Q2 | L14: Total Responses - Q2 | M14: Poor | O14: QKK | P14: SOUTH EAST LONDON ICB | R14: QKK | S14: SOUTH EAST LONDON ICB | U14: QHM | V14: R0B | W14: SOUTH TYNESIDE AND SUNDERLAND NHS FOUNDATION TRUST | AA14: RAE | AB14: EAST SUSSEX HEALTHCARE NHS TRUST
K15: Percentage Positive - Q2 | L15: Total Eligible - Q2 | M15: Very Poor | O15: QKS | P15: KENT AND MEDWAY ICB | R15: QKS | S15: KENT AND MEDWAY ICB | U15: QHM | V15: RTD | W15: THE NEWCASTLE UPON TYNE HOSPITALS NHS FOUNDATION TRUST | AA15: RBK | AB15: EPSOM AND ST HELIER UNIVERSITY HOSPITALS NHS TRUST
K16: Percentage Negative - Q2 | L16: Percentage Positive - Q2 | M16: Don't Know | O16: QM7 | P16: HERTFORDSHIRE AND WEST ESSEX ICB | R16: QM7 | S16: HERTFORDSHIRE AND WEST ESSEX ICB | U16: QJ2 | V16: RY8 | W16: DERBYSHIRE COMMUNITY HEALTH SERVICES NHS FOUNDATION TRUST | AA16: RCB | AB16: FIRST COMMUNITY HEALTH AND CARE CIC
K17: Yes definitely - Q2 | L17: Percentage Negative - Q2 | O17: QMF | P17: NORTH EAST LONDON ICB | R17: QMF | S17: NORTH EAST LONDON ICB | U17: QJG | V17: RDE | W17: EAST SUFFOLK AND NORTH ESSEX NHS FOUNDATION TRUST | AA17: RCF | AB17: GATESHEAD HEALTH NHS FOUNDATION TRUST
K18: Yes to some extent - Q2 | L18: Yes definitely - Q2 | O18: QMJ | P18: NORTH CENTRAL LONDON ICB | R18: QMJ | S18: NORTH CENTRAL LONDON ICB | U18: QJG | V18: NQA | W18: PROVIDE | AA18: RD8 | AB18: GEORGE ELIOT HOSPITAL NHS TRUST
K19: No - Q2 | L19: Yes to some extent - Q2 | O19: QMM | P19: NORFOLK AND WAVENEY ICB | R19: QMM | S19: NORFOLK AND WAVENEY ICB | U19: QJK | V19: NR5 | W19: LIVEWELL SOUTHWEST | AA19: RDE | AB19: GLOUCESTERSHIRE HEALTH AND CARE NHS FOUNDATION TRUST
K20: Total Responses - Q3 | L20: No - Q2 | O20: QNC | P20: STAFFORDSHIRE AND STOKE-ON-TRENT ICB | R20: QNC | S20: STAFFORDSHIRE AND STOKE-ON-TRENT ICB | U20: QJM | V20: RY5 | W20: LINCOLNSHIRE COMMUNITY HEALTH SERVICES NHS TRUST | AA20: RDR | AB20: GUY'S AND ST THOMAS' NHS FOUNDATION TRUST
K21: Percentage Positive - Q3 | L21: Total Responses - Q3 | O21: QNQ | P21: FRIMLEY ICB | R21: QNQ | S21: FRIMLEY ICB | U21: QK1 | V21: RWE | W21: UNIVERSITY HOSPITALS OF LEICESTER NHS TRUST | AA21: RDY | AB21: HERTFORDSHIRE COMMUNITY NHS TRUST
K22: Percentage Negative - Q3 | L22: Percentage Positive - Q3 | O22: QNX | P22: SUSSEX ICB | R22: QNX | S22: SUSSEX ICB | U22: QKK | V22: RJ1 | W22: GUY'S AND ST THOMAS' NHS FOUNDATION TRUST | AA22: REF | AB22: IMPERIAL COLLEGE HEALTHCARE NHS TRUST
K23: Yes definitely - Q3 | L23: Percentage Negative - Q3 | O23: QOC | P23: SHROPSHIRE, TELFORD AND WREKIN ICB | R23: QOC | S23: SHROPSHIRE, TELFORD AND WREKIN ICB | U23: QKK | V23: RJZ | W23: KING'S COLLEGE HOSPITAL NHS FOUNDATION TRUST | AA23: RF4 | AB23: KING'S COLLEGE HOSPITAL NHS FOUNDATION TRUST
K24: Yes to some extent - Q3 | L24: Yes definitely - Q3 | O24: QOP | P24: GREATER MANCHESTER ICB | R24: QOP | S24: GREATER MANCHESTER ICB | U24: QM7 | V24: RY4 | W24: HERTFORDSHIRE COMMUNITY NHS TRUST | AA24: RFR | AB24: LANCASHIRE & SOUTH CUMBRIA NHS FOUNDATION TRUST
K25: No - Q3 | L25: Yes to some extent - Q3 | O25: QOQ | P25: HUMBER AND NORTH YORKSHIRE ICB | R25: QOQ | S25: HUMBER AND NORTH YORKSHIRE ICB | U25: QMF | V25: RF4 | W25: BARKING, HAVERING AND REDBRIDGE UNIVERSITY HOSPITALS NHS TRUST | AA25: RGT | AB25: LEEDS COMMUNITY HEALTHCARE NHS TRUST
L26: No - Q3 | O26: QOX | P26: BATH AND NORTH EAST SOMERSET, SWINDON AND WILTSHIRE ICB | R26: QOX | S26: BATH AND NORTH EAST SOMERSET, SWINDON AND WILTSHIRE ICB | U26: QMM | V26: RY3 | W26: NORFOLK COMMUNITY HEALTH AND CARE NHS TRUST | AA26: RHQ | AB26: LINCOLNSHIRE COMMUNITY HEALTH SERVICES NHS TRUST
L27: SMS - Q1 | O27: QPM | P27: NORTHAMPTONSHIRE ICB | R27: QPM | S27: NORTHAMPTONSHIRE ICB | U27: QNC | V27: RRE | W27: MIDLANDS PARTNERSHIP NHS FOUNDATION TRUST | AA27: RJ1 | AB27: LIVEWELL SOUTHWEST
L28: Smartphone - Q1 | O28: QR1 | P28: GLOUCESTERSHIRE ICB | R28: QR1 | S28: GLOUCESTERSHIRE ICB | U28: QNX | V28: RXC | W28: EAST SUSSEX HEALTHCARE NHS TRUST | AA28: RJ7 | AB28: LONDON NORTH WEST UNIVERSITY HEALTHCARE NHS TRUST
L29: Smartphone After - Q1 | O29: QRL | P29: HAMPSHIRE AND ISLE OF WIGHT ICB | R29: QRL | S29: HAMPSHIRE AND ISLE OF WIGHT ICB | U29: QNX | V29: RDR | W29: SUSSEX COMMUNITY NHS FOUNDATION TRUST | AA29: RJC | AB29: MANCHESTER UNIVERSITY NHS FOUNDATION TRUST
L30: Paper - Q1 | O30: QRV | P30: NORTH WEST LONDON ICB | R30: QRV | S30: NORTH WEST LONDON ICB | U30: QOC | V30: R1D | W30: SHROPSHIRE COMMUNITY HEALTH NHS TRUST | AA30: RJL | AB30: MERSEY CARE NHS FOUNDATION TRUST
L31: Paper After - Q1 | O31: QSL | P31: SOMERSET ICB | R31: QSL | S31: SOMERSET ICB | U31: QOP | V31: RMC | W31: BOLTON NHS FOUNDATION TRUST | AA31: RJZ | AB31: MID YORKSHIRE HOSPITALS NHS TRUST
L32: Telephone - Q1 | O32: QT1 | P32: NOTTINGHAM AND NOTTINGHAMSHIRE ICB | R32: QT1 | S32: NOTTINGHAM AND NOTTINGHAMSHIRE ICB | U32: QOP | V32: R0A | W32: MANCHESTER UNIVERSITY NHS FOUNDATION TRUST | AA32: RKB | AB32: MIDLANDS PARTNERSHIP NHS FOUNDATION TRUST
L33: Online - Q1 | O33: QT6 | P33: CORNWALL AND THE ISLES OF SCILLY ICB | R33: QT6 | S33: CORNWALL AND THE ISLES OF SCILLY ICB | U33: QOP | V33: RWJ | W33: STOCKPORT NHS FOUNDATION TRUST | AA33: RL4 | AB33: MILTON KEYNES UNIVERSITY HOSPITAL NHS FOUNDATION TRUST
L34: Other - Q1 | O34: QU9 | P34: BUCKINGHAMSHIRE, OXFORDSHIRE AND BERKSHIRE WEST ICB | R34: QU9 | S34: BUCKINGHAMSHIRE, OXFORDSHIRE AND BERKSHIRE WEST ICB | U34: QOP | V34: RMP | W34: TAMESIDE AND GLOSSOP INTEGRATED CARE NHS FOUNDATION TRUST | AA34: RLT | AB34: NORFOLK COMMUNITY HEALTH AND CARE NHS TRUST
L35: SMS - Q2 | O35: QUA | P35: BLACK COUNTRY ICB | R35: QUA | S35: BLACK COUNTRY ICB | U35: QOP | V35: RRF | W35: WRIGHTINGTON, WIGAN AND LEIGH NHS FOUNDATION TRUST | AA35: RMC | AB35: NORTH CUMBRIA INTEGRATED CARE NHS FOUNDATION TRUST
L36: Smartphone - Q2 | O36: QUE | P36: CAMBRIDGESHIRE AND PETERBOROUGH ICB | R36: QUE | S36: CAMBRIDGESHIRE AND PETERBOROUGH ICB | U36: QOQ | V36: NNF | W36: CITY HEALTH CARE PARTNERSHIP CIC | AA36: RMP | AB36: NORTH TEES AND HARTLEPOOL NHS FOUNDATION TRUST
L37: Smartphone After - Q2 | O37: QUY | P37: BRISTOL, NORTH SOMERSET AND SOUTH GLOUCESTERSHIRE ICB | R37: QUY | S37: BRISTOL, NORTH SOMERSET AND SOUTH GLOUCESTERSHIRE ICB | U37: QOQ | V37: RJL | W37: NORTHERN LINCOLNSHIRE AND GOOLE NHS FOUNDATION TRUST | AA37: RNA | AB37: NORTHAMPTONSHIRE HEALTHCARE NHS FOUNDATION TRUST
L38: Paper - Q2 | O38: QVV | P38: DORSET ICB | R38: QVV | S38: DORSET ICB | U38: QOQ | V38: RCB | W38: YORK AND SCARBOROUGH TEACHING HOSPITALS NHS FOUNDATION TRUST | AA38: RNN | AB38: NORTHERN LINCOLNSHIRE AND GOOLE NHS FOUNDATION TRUST
L39: Paper After - Q2 | O39: QWE | P39: SOUTH WEST LONDON ICB | R39: QWE | S39: SOUTH WEST LONDON ICB | U39: QOX | V39: AXG | W39: WILTSHIRE HEALTH & CARE | AA39: RP1 | AB39: NORTHUMBRIA HEALTHCARE NHS FOUNDATION TRUST
L40: Telephone - Q2 | O40: QWO | P40: WEST YORKSHIRE ICB | R40: QWO | S40: WEST YORKSHIRE ICB | U40: QPM | V40: RP1 | W40: NORTHAMPTONSHIRE HEALTHCARE NHS FOUNDATION TRUST | AA40: RR7 | AB40: NOTTINGHAM CITYCARE PARTNERSHIP
L41: Online - Q2 | O41: QWU | P41: COVENTRY AND WARWICKSHIRE ICB | R41: QWU | S41: COVENTRY AND WARWICKSHIRE ICB | U41: QR1 | V41: RTQ | W41: GLOUCESTERSHIRE HEALTH AND CARE NHS FOUNDATION TRUST | AA41: RRE | AB41: OXFORD UNIVERSITY HOSPITALS NHS FOUNDATION TRUST
L42: Other - Q2 | O42: QXU | P42: SURREY HEARTLANDS ICB | R42: QXU | S42: SURREY HEARTLANDS ICB | U42: QRL | V42: R1C | W42: SOLENT NHS TRUST | AA42: RRF | AB42: PROVIDE
L43: SMS - Q3 | O43: QYG | P43: CHESHIRE AND MERSEYSIDE ICB | R43: QYG | S43: CHESHIRE AND MERSEYSIDE ICB | U43: QRL | V43: RW1 | W43: SOUTHERN HEALTH NHS FOUNDATION TRUST | AA43: RT1 | AB43: ROTHERHAM DONCASTER AND SOUTH HUMBER NHS FOUNDATION TRUST
L44: Smartphone - Q3 | U44: QRV | V44: RYJ | W44: IMPERIAL COLLEGE HEALTHCARE NHS TRUST | AA44: RTD | AB44: ROYAL CORNWALL HOSPITALS NHS TRUST
L45: Smartphone After - Q3 | U45: QRV | V45: R1K | W45: LONDON NORTH WEST UNIVERSITY HEALTHCARE NHS TRUST | AA45: RTF | AB45: ROYAL SURREY COUNTY HOSPITAL NHS FOUNDATION TRUST
L46: Paper - Q3 | U46: QT1 | V46: NR3 | W46: NOTTINGHAM CITYCARE PARTNERSHIP | AA46: RTH | AB46: SHEFFIELD TEACHING HOSPITALS NHS FOUNDATION TRUST
L47: Paper After - Q3 | U47: QT6 | V47: REF | W47: ROYAL CORNWALL HOSPITALS NHS TRUST | AA47: RTQ | AB47: SHROPSHIRE COMMUNITY HEALTH NHS TRUST
L48: Telephone - Q3 | U48: QU9 | V48: RTH | W48: OXFORD UNIVERSITY HOSPITALS NHS FOUNDATION TRUST | AA48: RTR | AB48: SOLENT NHS TRUST
L49: Online - Q3 | U49: QUA | V49: RNA | W49: THE DUDLEY GROUP NHS FOUNDATION TRUST | AA49: RVR | AB49: SOUTH TEES HOSPITALS NHS FOUNDATION TRUST
L50: Other - Q3 | U50: QUA | V50: RL4 | W50: THE ROYAL WOLVERHAMPTON NHS TRUST | AA50: RVW | AB50: SOUTH TYNESIDE AND SUNDERLAND NHS FOUNDATION TRUST
U51: QUA | V51: RBK | W51: WALSALL HEALTHCARE NHS TRUST | AA51: RW1 | AB51: SOUTH WARWICKSHIRE UNIVERSITY NHS FOUNDATION TRUST
U52: QUE | V52: RGT | W52: CAMBRIDGE UNIVERSITY HOSPITALS NHS FOUNDATION TRUST | AA52: RW4 | AB52: SOUTHERN HEALTH NHS FOUNDATION TRUST
U53: QUE | V53: RT1 | W53: CAMBRIDGESHIRE AND PETERBOROUGH NHS FOUNDATION TRUST | AA53: RW5 | AB53: ST GEORGE'S UNIVERSITY HOSPITALS NHS FOUNDATION TRUST
U54: QVV | V54: RDY | W54: DORSET HEALTHCARE UNIVERSITY NHS FOUNDATION TRUST | AA54: RWE | AB54: STOCKPORT NHS FOUNDATION TRUST
U55: QWE | V55: RVR | W55: EPSOM AND ST HELIER UNIVERSITY HOSPITALS NHS TRUST | AA55: RWJ | AB55: SUSSEX COMMUNITY NHS FOUNDATION TRUST
U56: QWE | V56: RJ7 | W56: ST GEORGE'S UNIVERSITY HOSPITALS NHS FOUNDATION TRUST | AA56: RXC | AB56: TAMESIDE AND GLOSSOP INTEGRATED CARE NHS FOUNDATION TRUST
U57: QWO | V57: RCF | W57: AIREDALE NHS FOUNDATION TRUST | AA57: RXE | AB57: THE DUDLEY GROUP NHS FOUNDATION TRUST
U58: QWO | V58: RAE | W58: BRADFORD TEACHING HOSPITALS NHS FOUNDATION TRUST | AA58: RXF | AB58: THE NEWCASTLE UPON TYNE HOSPITALS NHS FOUNDATION TRUST
U59: QWO | V59: RY6 | W59: LEEDS COMMUNITY HEALTHCARE NHS TRUST | AA59: RXP | AB59: THE ROTHERHAM NHS FOUNDATION TRUST
U60: QWO | V60: RXF | W60: MID YORKSHIRE HOSPITALS NHS TRUST | AA60: RY3 | AB60: THE ROYAL WOLVERHAMPTON NHS TRUST
U61: QWU | V61: RLT | W61: GEORGE ELIOT HOSPITAL NHS TRUST | AA61: RY4 | AB61: UNIVERSITY HOSPITALS COVENTRY AND WARWICKSHIRE NHS TRUST
U62: QWU | V62: RJC | W62: SOUTH WARWICKSHIRE UNIVERSITY NHS FOUNDATION TRUST | AA62: RY5 | AB62: UNIVERSITY HOSPITALS OF LEICESTER NHS TRUST
U63: QWU | V63: RKB | W63: UNIVERSITY HOSPITALS COVENTRY AND WARWICKSHIRE NHS TRUST | AA63: RY6 | AB63: WALSALL HEALTHCARE NHS TRUST
U64: QXU | V64: NDJ | W64: FIRST COMMUNITY HEALTH AND CARE CIC | AA64: RY8 | AB64: WILTSHIRE HEALTH & CARE
U65: QXU | V65: RA2 | W65: ROYAL SURREY COUNTY HOSPITAL NHS FOUNDATION TRUST | AA65: RYJ | AB65: WRIGHTINGTON, WIGAN AND LEIGH NHS FOUNDATION TRUST
U66: QYG | V66: RW4 | W66: MERSEY CARE NHS FOUNDATION TRUST | AA66: RYW | AB66: YORK AND SCARBOROUGH TEACHING HOSPITALS NHS FOUNDATION TRUST
